bitfinex/quotes_BTCUSD_20250127
["timestamp","ask_amount","ask_price","bid_price","bid_amount"]
[1737965680190,0.0001415,99199.0,99193.0,0.30122]
[1737965680395,0.0001415,99199.0,99193.0,0.90125733]
[1737965680602,0.0001415,99199.0,99193.0,0.39856729]
[1737965681256,0.0001415,99199.0,99189.0,0.201635]
[1737965681257,0.1319415,99194.0,99189.0,0.151225]
[1737965681458,0.1319415,99194.0,99170.0,0.22349512]
[1737965681658,0.1319415,99194.0,99171.0,0.09734729]
[1737965681659,0.00126023,99193.0,99171.0,0.09734729]
[1737965682119,0.201631,99191.0,99160.0,0.22349512]
[1737965682324,0.1318,99189.0,99162.0,0.01054162]
[1737965682532,0.1318,99189.0,99150.0,0.22349512]
[1737965682533,0.0495,99177.0,99163.0,0.09734729]
[1737965682766,0.0495,99177.0,99152.0,0.08901615]
[1737965682767,0.08356056,99176.0,99152.0,0.08901615]
[1737965682971,0.283081,99153.0,99152.0,0.03901615]
[1737965683185,0.233601,99140.0,99139.0,0.00014828]
[1737965683605,0.34094829,99140.0,99139.0,0.00014828]
[1737965683818,0.0923,99136.0,99100.0,0.30314774]
[1737965684042,0.201763,99126.0,99107.0,0.00044545]
[1737965684243,0.00126132,99125.0,99107.0,0.00044545]
[1737965684450,0.1318,99124.0,99107.0,0.00044545]
[1737965684666,0.151331,99120.0,99107.0,0.00044545]
[1737965684875,0.00126132,99119.0,99107.0,0.00044545]
[1737965685084,0.00126138,99118.0,99107.0,0.00144545]
[1737965685309,0.201781,99117.0,99107.0,0.00044545]
[1737965685523,0.15135,99108.0,99107.0,0.00044545]
[1737965685944,0.23365,99108.0,99107.0,0.00044545]
[1737965686147,0.25365,99108.0,99107.0,0.00044545]
[1737965686361,0.23365,99108.0,99107.0,0.00044545]
[1737965686593,0.19964729,99108.0,99100.0,0.10133174]
[1737965686764,0.15136,99101.0,99100.0,0.10133174]
[1737965686997,0.17136,99101.0,99100.0,0.10133174]
[1737965687203,0.15136,99101.0,99100.0,0.10133174]
[1737965687857,0.151356,99104.0,99100.0,0.10133174]
[1737965688061,0.02049489,99106.0,99100.0,0.10133174]
[1737965688386,0.0823,99108.0,99103.0,0.151357]
[1737965688584,0.0823,99108.0,99103.0,0.023]
[1737965688783,0.0823,99108.0,99107.0,0.17464836]
[1737965689070,0.0823,99123.0,99122.0,0.174328]
[1737965689262,0.0001416,99131.0,99123.0,0.023]
[1737965689408,0.0001416,99131.0,99130.0,0.174316]
[1737965690036,0.0001416,99131.0,99130.0,0.27166329]
[1737965690929,0.0011416,99131.0,99130.0,0.27266329]
[1737965691114,0.0011416,99131.0,99130.0,0.27166329]
[1737965691738,0.0011416,99131.0,99106.0,0.50269004]
[1737965691942,0.00126113,99130.0,99108.0,0.09734729]
[1737965692185,0.08070273,99138.0,99109.0,0.201798]
[1737965692385,0.19659002,99138.0,99117.0,0.151335]
[1737965692589,0.001,99131.0,99110.0,0.023]
[1737965692912,0.001,99131.0,99108.0,0.09734729]
[1737965693115,0.151316,99130.0,99113.0,0.023]
[1737965693314,0.151316,99130.0,99117.0,0.151335]
[1737965693515,0.151321,99127.0,99115.0,0.151338]
[1737965693734,0.201751,99132.0,99111.0,0.023]
[1737965693971,0.09924273,99138.0,99122.0,0.224771]
[1737965694142,0.09924273,99138.0,99134.0,0.15131]
[1737965694350,0.09924273,99138.0,99137.0,0.174305]
[1737965694694,0.01854,99138.0,99137.0,0.174305]
[1737965696299,0.01854,99138.0,99137.0,0.27165229]
[1737965696585,0.02154,99138.0,99137.0,0.27165229]
[1737965697069,0.01854,99138.0,99137.0,0.27165229]
[1737965697314,0.02054,99138.0,99137.0,0.42165229]
[1737965697515,0.0818,99185.0,99184.0,0.151234]
[1737965697892,0.0818,99185.0,99177.0,0.023]
[1737965698122,0.0818,99185.0,99161.0,0.173]
[1737965698302,0.0818,99185.0,99177.0,0.151243]
[1737965698505,0.0818,99185.0,99163.0,0.023]
[1737965698710,0.201645,99184.0,99164.0,0.09734729]
[1737965698915,0.20240807,99184.0,99140.0,0.39433146]
[1737965699135,0.00076207,99184.0,99159.0,0.023]
[1737965699531,0.00076207,99184.0,99162.0,0.151267]
[1737965699732,0.151251,99173.0,99163.0,0.151266]
[1737965699962,0.151251,99173.0,99157.0,0.023]
[1737965700133,0.151251,99173.0,99163.0,0.151265]
[1737965700134,0.151252,99173.0,99163.0,0.151265]
[1737965700357,0.0818,99185.0,99164.0,0.151263]
[1737965700564,0.0818,99185.0,99152.0,0.201709]
[1737965700565,0.02,99179.0,99137.0,0.50269004]
[1737965700728,0.0818,99185.0,99115.0,0.01995128]
[1737965700729,0.02,99163.0,99115.0,0.01995128]
[1737965700923,0.0818,99161.0,99116.0,0.09734729]
[1737965701125,0.02,99155.0,99125.0,0.201764]
[1737965701342,0.02095764,99154.0,99133.0,0.201748]
[1737965701555,0.151295,99144.0,99133.0,0.151311]
[1737965701759,0.00076207,99154.0,99116.0,0.09734729]
[1737965701958,0.151293,99145.0,99134.0,0.151309]
[1737965702177,0.151293,99145.0,99119.0,0.023]
[1737965702382,0.00076207,99144.0,99121.0,0.023]
[1737965702590,0.00076207,99154.0,99122.0,0.09734729]
[1737965702761,0.0818,99128.0,99116.0,0.00014817]
[1737965702992,0.151325,99124.0,99116.0,0.00214817]
[1737965703177,0.23312,99128.0,99116.0,0.00414817]
[1737965703436,0.151289,99148.0,99127.0,0.151321]
[1737965703639,0.0818,99143.0,99121.0,0.173]
[1737965703843,0.151301,99141.0,99129.0,0.023]
[1737965704054,0.151301,99141.0,99122.0,0.002]
[1737965704055,0.151301,99140.0,99122.0,0.002]
[1737965704268,0.0818,99143.0,99131.0,0.151314]
[1737965704472,0.20173,99142.0,99126.0,0.174321]
[1737965704676,0.151327,99123.0,99122.0,0.002]
[1737965704946,0.151327,99123.0,99107.0,0.00029736]
[1737965704947,0.151336,99117.0,99116.0,0.00014817]
[1737965705152,0.0206253,99135.0,99116.0,0.00014817]
[1737965705292,0.230636,99117.0,99116.0,0.00014817]
[1737965705503,0.02,99101.0,99100.0,0.10123174]
[1737965705706,0.331371,99094.0,99041.0,0.08817813]
[1737965705901,0.0793,99070.0,99041.0,0.08817813]
[1737965706106,0.09810936,99069.0,99044.0,0.0104947]
[1737965706306,0.201881,99068.0,99044.0,0.0104947]
[1737965706514,0.09810936,99067.0,99044.0,0.0104947]
[1737965706724,0.2019,99059.0,99044.0,0.0104947]
[1737965706929,0.15143,99056.0,99044.0,0.0104947]
[1737965707129,0.0793,99070.0,99044.0,0.0104947]
[1737965707130,0.15141,99069.0,99058.0,0.151426]
[1737965707333,0.151416,99065.0,99048.0,0.023]
[1737965707558,0.0823,99070.0,99050.0,0.023]
[1737965707759,0.003,99070.0,99069.0,0.151409]
[1737965707964,0.003,99070.0,99069.0,0.42175629]
[1737965708786,0.00076207,99106.0,99101.0,0.151359]
[1737965708992,0.0793,99107.0,99098.0,0.20182]
[1737965709191,0.151353,99106.0,99097.0,0.201821]
[1737965709368,0.0793,99107.0,99087.0,0.023]
[1737965709569,0.09810936,99106.0,99069.0,0.10801824]
[1737965709824,0.151362,99101.0,99072.0,0.374873]
[1737965709969,0.151362,99100.0,99074.0,0.173]
[1737965710180,0.0793,99107.0,99076.0,0.023]
[1737965710407,8.47e-05,99104.0,99095.0,0.151369]
[1737965710579,8.47e-05,99104.0,99088.0,0.023]
[1737965710782,0.151369,99096.0,99088.0,0.17438]
[1737965711045,0.20181,99103.0,99077.0,0.09734729]
[1737965711164,0.15,99094.0,99047.0,0.50269004]
[1737965711364,0.01,99087.0,99044.0,0.01]
[1737965711610,0.01,99073.0,99044.0,0.01]
[1737965711807,0.201877,99070.0,99044.0,0.01]
[1737965712007,0.09810936,99069.0,99044.0,0.01]
[1737965712230,0.1868504,99072.0,99052.0,0.151434]
[1737965712429,0.1868504,99072.0,99045.0,0.201928]
[1737965712430,0.28419769,99072.0,99047.0,0.023]
[1737965712608,0.30273769,99072.0,99052.0,0.151434]
[1737965712834,0.151421,99061.0,99052.0,0.151434]
[1737965713038,0.151429,99057.0,99048.0,0.023]
[1737965713231,8.464e-05,99061.0,99046.0,0.023]
[1737965713389,0.201901,99058.0,99047.0,0.009]
[1737965713593,0.151438,99051.0,99047.0,0.009]
[1737965713830,0.201905,99056.0,99044.0,0.01029736]
[1737965714033,0.151438,99051.0,99044.0,0.01029736]
[1737965714290,0.151433,99054.0,99044.0,0.16174436]
[1737965714498,8.464e-05,99061.0,99044.0,0.01029736]
[1737965714812,0.151444,99047.0,99044.0,0.01029736]
[1737965715015,0.230746,99045.0,99044.0,0.01029736]
[1737965715532,0.0793,99045.0,99044.0,0.16174436]
[1737965715727,0.23080664,99061.0,99050.0,0.151437]
[1737965715973,0.07938464,99061.0,99056.0,0.151428]
[1737965716325,0.07938464,99061.0,99049.0,0.023]
[1737965716498,0.151427,99058.0,99048.0,0.023]
[1737965716648,0.151427,99058.0,99050.0,0.023]
[1737965716843,0.151427,99058.0,99046.0,0.201926]
[1737965716844,0.07938464,99061.0,99047.0,0.023]
[1737965717050,0.151427,99058.0,99049.0,0.023]
[1737965717255,0.151429,99057.0,99049.0,0.023]
[1737965717482,0.201899,99059.0,99044.0,0.01029736]
[1737965717682,0.00076207,99058.0,99044.0,0.01029736]
[1737965717851,0.201908,99055.0,99044.0,0.01029736]
[1737965718070,0.201912,99053.0,99044.0,0.01029736]
[1737965718274,0.08038464,99061.0,99044.0,0.16174336]
[1737965718473,0.001,99057.0,99045.0,0.023]
[1737965718694,0.151438,99051.0,99044.0,0.01029736]
[1737965718973,0.00076207,99056.0,99044.0,0.01029736]
[1737965719189,0.001,99057.0,99047.0,0.023]
[1737965719397,0.001,99057.0,99050.0,0.151438]
[1737965719714,0.151431,99055.0,99047.0,0.0229]
[1737965719951,0.001,99057.0,99047.0,0.0229]
[1737965720391,0.001,99057.0,99056.0,0.151429]
[1737965720638,8.464e-05,99061.0,99060.0,0.151423]
[1737965720816,8.464e-05,99061.0,99052.0,0.151434]
[1737965721015,8.464e-05,99061.0,99044.0,0.02064044]
[1737965721245,8.464e-05,99061.0,99059.0,0.151424]
[1737965721452,8.464e-05,99061.0,99046.0,0.023]
[1737965721453,0.001,99057.0,99046.0,0.023]
[1737965721655,0.001,99057.0,99056.0,0.151428]
[1737965721893,8.464e-05,99061.0,99059.0,0.151424]
[1737965722105,8.464e-05,99061.0,99060.0,0.151423]
[1737965722327,8.464e-05,99061.0,99056.0,0.023]
[1737965722542,8.464e-05,99061.0,99033.0,0.201952]
[1737965722746,0.01862464,99061.0,99038.0,0.201941]
[1737965722967,0.00076207,99060.0,99038.0,0.201941]
[1737965723237,0.00076207,99060.0,99043.0,0.20222836]
[1737965723474,0.151423,99060.0,99043.0,0.00029736]
[1737965723716,0.00076207,99060.0,99043.0,0.00029736]
[1737965723935,0.151424,99060.0,99045.0,0.201928]
[1737965724143,0.17104664,99061.0,99045.0,0.201928]
[1737965724361,0.01962464,99061.0,99051.0,0.151436]
[1737965724564,0.01962464,99061.0,99048.0,0.023]
[1737965724979,0.01862464,99061.0,99047.0,0.023]
[1737965725182,0.01862464,99061.0,99060.0,0.151423]
[1737965726125,0.01862464,99061.0,99050.0,0.023]
[1737965726331,0.01862464,99061.0,99060.0,0.151423]
[1737965726541,0.01962464,99061.0,99060.0,0.174423]
[1737965726956,0.01862464,99061.0,99060.0,0.27177029]
[1737965727604,0.01862464,99061.0,99060.0,0.28231271]
[1737965728151,0.01862464,99061.0,99060.0,0.43231271]
[1737965728516,0.01962464,99061.0,99060.0,0.43231271]
[1737965728924,0.01862464,99061.0,99060.0,0.023]
[1737965729126,0.01862464,99061.0,99060.0,0.174423]
[1737965729703,0.01862464,99061.0,99058.0,0.151425]
[1737965729811,0.01862464,99061.0,99057.0,0.023]
[1737965730028,0.01862464,99061.0,99053.0,0.20191]
[1737965730225,0.01862464,99061.0,99060.0,0.001]
[1737965730635,0.01962464,99061.0,99060.0,0.001]
[1737965730842,0.17104564,99061.0,99060.0,0.001]
[1737965731232,0.17004564,99061.0,99060.0,0.001]
[1737965731432,0.17204564,99061.0,99060.0,0.001]
[1737965731634,0.17204564,99061.0,99060.0,0.007449]
[1737965731853,0.17004564,99061.0,99060.0,0.007449]
[1737965732131,0.19180919,99061.0,99060.0,0.006449]
[1737965732339,0.19257126,99061.0,99060.0,0.006449]
[1737965732540,0.28991855,99061.0,99060.0,0.006449]
[1737965732743,0.28915648,99061.0,99060.0,0.006449]
[1737965732968,0.19180919,99061.0,99060.0,0.006449]
[1737965733179,0.04238819,99061.0,99060.0,0.180872]
[1737965733403,0.06945709,99061.0,99060.0,0.42821929]
[1737965733600,0.07245709,99061.0,99060.0,0.43876128]
[1737965733800,0.07045709,99061.0,99060.0,0.43876128]
[1737965734021,0.06845709,99061.0,99060.0,0.180872]
[1737965734223,0.07145709,99061.0,99060.0,0.180872]
[1737965734437,0.04138819,99061.0,99060.0,0.42821929]
[1737965734614,0.03838819,99061.0,99060.0,0.42821929]
[1737965735068,0.03838819,99061.0,99060.0,0.93090933]
[1737965735561,0.0001417,99093.0,99092.0,0.151374]
[1737965735764,0.0001417,99093.0,99092.0,0.27172129]
[1737965736192,0.0001417,99093.0,99092.0,0.174374]
[1737965736395,0.0001417,99093.0,99092.0,0.18469545]
[1737965736849,0.0001417,99093.0,99092.0,0.174374]
[1737965737057,0.0001417,99093.0,99083.0,0.0098236]
[1737965737276,0.151379,99089.0,99088.0,9.983e-05]
[1737965737477,0.15214107,99089.0,99088.0,9.983e-05]
[1737965737682,0.23504107,99089.0,99088.0,9.983e-05]
[1737965737885,0.384279,99089.0,99088.0,9.983e-05]
[1737965738340,0.0829,99089.0,99088.0,9.983e-05]
[1737965738541,0.236279,99089.0,99088.0,9.983e-05]
[1737965738745,0.0849,99089.0,99088.0,9.983e-05]
[1737965738947,0.236279,99089.0,99088.0,9.983e-05]
[1737965739155,0.0849,99089.0,99088.0,9.983e-05]
[1737965739366,0.11501661,99089.0,99088.0,9.983e-05]
[1737965739569,0.26715768,99089.0,99088.0,9.983e-05]
[1737965739739,0.26639561,99089.0,99088.0,9.983e-05]
[1737965739969,0.26439561,99089.0,99088.0,9.983e-05]
[1737965740155,0.26639561,99089.0,99088.0,9.983e-05]
[1737965740564,0.26439561,99089.0,99088.0,9.983e-05]
[1737965740857,0.26739561,99089.0,99088.0,9.983e-05]
[1737965741070,0.11601661,99089.0,99088.0,9.983e-05]
[1737965741369,0.26739561,99089.0,99088.0,9.983e-05]
[1737965742111,0.237279,99089.0,99088.0,9.983e-05]
[1737965742233,0.33462629,99089.0,99088.0,9.983e-05]
[1737965742462,0.49480298,99089.0,99088.0,9.983e-05]
[1737965742686,0.33462629,99089.0,99088.0,9.983e-05]
[1737965742903,0.0859,99089.0,99088.0,9.983e-05]
[1737965743155,0.0001417,99093.0,99092.0,0.151374]
[1737965743367,0.0001417,99093.0,99092.0,0.174374]
[1737965744552,0.0001417,99093.0,99088.0,9.983e-05]
[1737965744777,0.0011417,99093.0,99088.0,9.983e-05]
[1737965745006,0.00076207,99092.0,99088.0,9.983e-05]
[1737965745240,0.0011417,99093.0,99092.0,0.151374]
[1737965745862,0.0011417,99093.0,99090.0,0.023]
[1737965746071,0.0011417,99093.0,99088.0,9.983e-05]
[1737965746072,0.151379,99089.0,99088.0,9.983e-05]
[1737965746269,0.23504107,99089.0,99088.0,9.983e-05]
[1737965746465,0.48162629,99089.0,99088.0,9.983e-05]
[1737965746729,0.51228693,99089.0,99088.0,0.00654921]
[1737965746882,0.51298317,99089.0,99088.0,0.00654921]
[1737965747102,0.25497524,99089.0,99088.0,0.00654921]
[1737965747391,0.0839,99089.0,99088.0,0.00654921]
[1737965747609,0.151379,99089.0,99088.0,0.00654921]
[1737965747814,0.169919,99089.0,99088.0,0.00654921]
[1737965748024,0.23451565,99089.0,99088.0,0.00654921]
[1737965748205,0.23251565,99089.0,99088.0,0.00654921]
[1737965749281,0.23151565,99089.0,99088.0,0.00654921]
[1737965749488,0.47886294,99089.0,99088.0,0.00654921]
[1737965749702,0.67616715,99089.0,99088.0,0.00854921]
[1737965749913,0.67916715,99089.0,99088.0,0.00854921]
[1737965750122,1.17031334,99089.0,99088.0,0.00854921]
[1737965750327,1.17031334,99089.0,99088.0,0.00654921]
[1737965750534,1.17331334,99089.0,99088.0,0.00654921]
[1737965750974,1.17131334,99089.0,99088.0,0.00654921]
[1737965751180,1.31921334,99089.0,99088.0,0.00654921]
[1737965751361,1.31821334,99089.0,99088.0,0.00654921]
[1737965751606,1.31821334,99089.0,99088.0,0.00022444]
[1737965751814,0.151441,99048.0,99047.0,0.00029757]
[1737965752100,0.75415036,99048.0,99047.0,0.00079227]
[1737965752313,0.75338829,99048.0,99047.0,0.00079227]
[1737965752537,0.90338829,99048.0,99047.0,0.00079227]
[1737965752741,1.71284787,99048.0,99047.0,0.00079227]
[1737965752944,1.75138787,99048.0,99047.0,0.00079227]
[1737965753120,0.02,99047.0,99010.0,0.00029736]
[1737965753375,0.02,99047.0,99044.0,0.01039724]
[1737965753376,0.40879329,99045.0,99044.0,0.01039724]
[1737965753589,0.311447,99044.0,99010.0,0.00029736]
[1737965753765,0.151481,99022.0,99010.0,0.00029736]
[1737965754000,0.75342829,99022.0,99021.0,0.000382]
[1737965754647,1.00302829,99022.0,99021.0,0.000382]
[1737965754870,1.10037558,99022.0,99021.0,0.000382]
[1737965755102,1.03300047,99022.0,99021.0,0.000382]
[1737965755313,1.03700047,99022.0,99021.0,0.000382]
[1737965755667,1.05700047,99022.0,99021.0,0.000382]
[1737965755882,1.04742723,99022.0,99021.0,0.000382]
[1737965756253,1.04642723,99022.0,99021.0,0.000382]
[1737965756768,1.05242723,99022.0,99021.0,0.000382]
[1737965756973,1.04842723,99022.0,99021.0,0.000382]
[1737965757257,1.04242723,99022.0,99021.0,0.000382]
[1737965757431,2.35247992,99022.0,99021.0,0.000382]
[1737965757661,2.35247992,99022.0,99010.0,0.00029736]
[1737965757662,0.311498,99011.0,99010.0,0.00029736]
[1737965757866,0.91344529,99011.0,99010.0,0.00044574]
[1737965758069,0.90344529,99011.0,99010.0,0.00044574]
[1737965758440,0.75344529,99011.0,99010.0,0.00044574]
[1737965758853,0.656098,99011.0,99010.0,0.00044574]
[1737965759301,0.75344529,99011.0,99010.0,0.00044574]
[1737965759501,0.76385229,99011.0,99010.0,0.00044574]
[1737965760214,0.68525034,99011.0,99010.0,0.00044574]
[1737965760628,0.52934534,99011.0,99010.0,0.00044574]
[1737965761057,0.89426334,99011.0,99010.0,0.00044574]
[1737965761263,1.04976134,99011.0,99010.0,0.00044574]
[1737965761374,1.05076134,99011.0,99010.0,0.00044574]
[1737965761580,1.028016,99011.0,99010.0,0.00044574]
[1737965761779,0.879518,99011.0,99010.0,0.00044574]
[1737965761987,0.879518,99011.0,99010.0,0.15194474]
[1737965762185,0.876518,99011.0,99010.0,0.00044574]
[1737965762429,0.879518,99011.0,99010.0,0.00044574]
[1737965762700,0.878518,99011.0,99010.0,0.00044574]
[1737965763194,1.030016,99011.0,99010.0,0.00044574]
[1737965763450,1.048556,99011.0,99010.0,0.00044574]
[1737965763663,0.899058,99011.0,99010.0,0.00044574]
[1737965763908,1.047556,99011.0,99010.0,0.00044574]
[1737965764151,1.052556,99011.0,99010.0,0.00044574]
[1737965764383,1.050556,99011.0,99010.0,0.00044574]
[1737965764633,1.39525058,99011.0,99010.0,0.00044574]
[1737965764876,0.321516,98999.0,98993.0,0.00029715]
[1737965765090,0.321528,98991.0,98990.0,0.00029715]
[1737965765399,0.151561,98970.0,98950.0,0.1099604]
[1737965765556,0.61982629,98970.0,98969.0,0.0007924]
[1737965765711,1.12442629,98970.0,98969.0,0.0007924]
[1737965765939,1.027079,98970.0,98969.0,0.0007924]
[1737965766578,0.875518,98970.0,98969.0,0.0007924]
[1737965766733,0.5046,98970.0,98969.0,0.1753544]
[1737965766947,0.5046,98970.0,98969.0,0.18581784]
[1737965767521,0.5046,98970.0,98969.0,0.1523544]
[1737965767980,0.5046,98970.0,98969.0,0.24970169]
[1737965768379,0.5056,98970.0,98969.0,0.28170169]
[1737965768586,0.5056,98970.0,98969.0,0.1863544]
[1737965768716,0.5056,98970.0,98969.0,0.26070169]
[1737965768921,0.5046,98970.0,98969.0,0.27470169]
[1737965769306,0.5046,98970.0,98969.0,0.1773544]
[1737965769988,0.5046,98970.0,98969.0,0.27270169]
[1737965770192,0.5046,98970.0,98969.0,0.1763544]
[1737965770407,0.5046,98970.0,98969.0,0.0037924]
[1737965770776,0.656161,98970.0,98969.0,0.0027924]
[1737965770960,0.656161,98970.0,98969.0,0.0047924]
[1737965771156,1.107679,98970.0,98969.0,0.0007924]
[1737965771384,1.107679,98970.0,98969.0,0.0017924]
[1737965771581,1.107679,98970.0,98969.0,0.0037924]
[1737965771761,1.107679,98970.0,98969.0,0.0017924]
[1737965771960,1.107679,98970.0,98969.0,0.0007924]
[1737965772245,1.107679,98970.0,98969.0,0.0027924]
[1737965772430,1.35502629,98970.0,98969.0,0.0027924]
[1737965772958,1.20502629,98970.0,98969.0,0.0027924]
[1737965773159,1.107679,98970.0,98969.0,0.0027924]
[1737965773408,1.107679,98970.0,98969.0,0.0017924]
[1737965773619,1.126219,98970.0,98969.0,0.0017924]
[1737965773816,1.130219,98970.0,98969.0,0.0007924]
[1737965774040,2.21406693,98970.0,98969.0,0.0007924]
[1737965774229,0.171584,98955.0,98954.0,0.0098646]
[1737965774434,0.98489336,98955.0,98954.0,0.010013]
[1737965774635,0.98489336,98955.0,98954.0,0.0001484]
[1737965774636,0.98413129,98955.0,98954.0,0.0001484]
[1737965774852,1.01183278,98955.0,98954.0,0.0001484]
[1737965775286,1.09082882,98955.0,98954.0,0.0001484]
[1737965775496,2.23023422,98955.0,98954.0,0.0011484]
[1737965775652,2.25520131,98955.0,98954.0,0.0011484]
[1737965776213,2.20749982,98955.0,98954.0,0.0011484]
[1737965776414,2.20226131,98955.0,98954.0,0.0011484]
[1737965776617,2.18389802,98955.0,98954.0,0.0001484]
[1737965776763,2.16716944,98955.0,98954.0,0.0001484]
[1737965776968,1.84322215,98955.0,98954.0,0.0001484]
[1737965777174,1.26658515,98955.0,98954.0,0.0001484]
[1737965777394,1.35993244,98955.0,98954.0,0.0001484]
[1737965777660,1.36093244,98955.0,98954.0,0.0001484]
[1737965778077,1.60727973,98955.0,98954.0,0.0001484]
[1737965778318,1.63227973,98955.0,98954.0,0.0001484]
[1737965778526,2.26121673,98955.0,98954.0,4e-07]
[1737965778719,0.32159,98951.0,98950.0,0.04258509]
[1737965778860,0.41893729,98951.0,98950.0,0.0427337]
[1737965779219,0.982562,98951.0,98950.0,0.0427337]
[1737965779400,1.1411867,98951.0,98950.0,2.7e-07]
[1737965779599,0.151634,98922.0,98921.0,0.00029757]
[1737965779834,1.12526136,98922.0,98921.0,0.00029757]
[1737965780012,1.027152,98922.0,98921.0,0.00029757]
[1737965780215,0.875518,98922.0,98921.0,0.15193357]
[1737965780659,0.5046,98922.0,98921.0,0.48070794]
[1737965780869,0.5233049,98922.0,98921.0,0.47028086]
[1737965781085,0.5243049,98922.0,98921.0,0.47028086]
[1737965781510,0.5233049,98922.0,98921.0,0.48060166]
[1737965781928,0.5233049,98922.0,98921.0,0.48360166]
[1737965782132,0.5243049,98922.0,98921.0,0.48760166]
[1737965782405,0.5243049,98922.0,98921.0,0.21725437]
[1737965782608,0.5056,98922.0,98921.0,0.33760166]
[1737965783609,0.5056,98922.0,98921.0,0.33460166]
[1737965783773,0.5046,98922.0,98921.0,0.15193357]
[1737965783973,0.5046,98922.0,98921.0,0.00229757]
[1737965784176,0.5056,98922.0,98921.0,0.15693357]
[1737965784400,0.5046,98922.0,98921.0,0.00029757]
[1737965784742,0.5046,98922.0,98921.0,0.00529757]
[1737965784946,0.657234,98922.0,98921.0,0.00529757]
[1737965785164,0.70508913,98922.0,98921.0,0.00229757]
[1737965785318,0.68927114,98922.0,98921.0,0.00229757]
[1737965785533,0.68927114,98922.0,98921.0,0.00329757]
[1737965785735,0.68927114,98922.0,98921.0,0.00129757]
[1737965786606,0.68927114,98922.0,98921.0,0.15293357]
[1737965786607,0.53763714,98922.0,98921.0,0.15293357]
[1737965787143,0.53863714,98922.0,98921.0,0.15293357]
[1737965787307,0.53763714,98922.0,98921.0,0.15193357]
[1737965787726,0.53863714,98922.0,98921.0,0.27328086]
[1737965787968,0.53863714,98922.0,98921.0,0.42228086]
[1737965788168,0.53763714,98922.0,98921.0,0.47028086]
[1737965788367,0.27269631,98922.0,98921.0,0.65256086]
[1737965788640,0.012191,98922.0,98921.0,0.65550418]
[1737965788853,0.012191,98922.0,98921.0,0.45322418]
[1737965789017,0.03015154,98951.0,98950.0,0.151591]
[1737965789232,0.03015154,98951.0,98950.0,0.27193829]
[1737965789899,0.00014825,98951.0,98950.0,0.27193829]
[1737965790287,0.00014825,98951.0,98950.0,0.151591]
[1737965791346,0.00014825,98951.0,98942.0,0.202137]
[1737965791347,0.151598,98946.0,98941.0,0.0098386]
[1737965791560,0.00076207,98945.0,98941.0,0.0098386]
[1737965791699,0.151603,98942.0,98941.0,0.0098386]
[1737965791896,0.151634,98922.0,98921.0,0.00029757]
[1737965792098,0.197934,98922.0,98921.0,0.00029757]
[1737965792493,0.197934,98922.0,98921.0,0.0046479]
[1737965793013,0.0463,98922.0,98921.0,0.0046479]
[1737965793211,0.197934,98922.0,98921.0,0.0046479]
[1737965793670,0.197934,98922.0,98921.0,0.00179744]
[1737965793990,0.216474,98922.0,98921.0,0.00179744]
[1737965794181,0.60123383,98922.0,98921.0,0.00179744]
[1737965794383,0.60223383,98922.0,98910.0,0.00029757]
[1737965794583,0.60123383,98922.0,98910.0,0.00029757]
[1737965794793,0.60023383,98922.0,98910.0,0.00029757]
[1737965795253,0.03005383,98921.0,98911.0,0.2022]
[1737965795670,0.151646,98915.0,98910.0,0.00029757]
[1737965795874,0.00076207,98920.0,98911.0,0.0098806]
[1737965796074,0.03005383,98921.0,98911.0,0.0098806]
[1737965796075,0.151649,98912.0,98911.0,0.0098806]
[1737965796285,0.151643,98916.0,98910.0,0.00029757]
[1737965796421,0.202185,98919.0,98910.0,0.00029757]
[1737965796634,0.07736207,98918.0,98910.0,0.00029757]
[1737965796833,0.151645,98916.0,98910.0,0.00129757]
[1737965797039,0.151643,98916.0,98910.0,0.00429757]
[1737965797234,0.0766,98918.0,98910.0,0.00029757]
[1737965797440,0.0766,98918.0,98916.0,0.151642]
[1737965797664,0.0766,98918.0,98917.0,0.151642]
[1737965797905,0.52388,98922.0,98910.0,0.00029757]
[1737965798101,0.52388,98922.0,98921.0,0.151636]
[1737965799208,0.52388,98922.0,98912.0,0.0098622]
[1737965799438,0.00076207,98921.0,98913.0,0.202197]
[1737965799748,0.198051,98911.0,98910.0,0.00029757]
[1737965799876,0.703391,98911.0,98910.0,0.00029757]
[1737965800491,0.80073829,98911.0,98910.0,0.00029757]
[1737965800746,0.83092089,98911.0,98910.0,0.00029757]
[1737965801031,0.83292089,98911.0,98910.0,0.00029757]
[1737965801237,0.84297945,98911.0,98910.0,0.00129757]
[1737965801448,0.84097945,98911.0,98910.0,0.00129757]
[1737965801654,0.83597945,98911.0,98910.0,0.00029757]
[1737965801799,0.86184358,98911.0,98910.0,0.00129757]
[1737965802334,0.86184358,98911.0,98910.0,0.00029757]
[1737965802335,0.60784529,98911.0,98910.0,0.00029757]
[1737965802539,0.61284529,98911.0,98910.0,0.00029757]
[1737965802758,0.56644529,98911.0,98910.0,0.15195057]
[1737965802922,0.56644529,98911.0,98910.0,0.00029757]
[1737965803123,0.53626269,98911.0,98910.0,0.00029757]
[1737965803321,0.68791369,98911.0,98910.0,0.00029757]
[1737965803617,0.53426269,98911.0,98910.0,0.15195057]
[1737965803817,0.52926269,98911.0,98910.0,0.15195057]
[1737965803934,0.54980269,98911.0,98910.0,0.15195057]
[1737965804133,0.54874413,98911.0,98910.0,0.15195057]
[1737965804365,0.54274413,98911.0,98910.0,0.15195057]
[1737965804944,0.54274413,98911.0,98910.0,0.39929786]
[1737965805205,0.52388,98911.0,98910.0,0.43038058]
[1737965805464,0.52388,98911.0,98910.0,0.93307062]
[1737965805730,0.52988,98911.0,98910.0,0.93307062]
[1737965805974,0.52988,98911.0,98910.0,0.93507062]
[1737965806389,0.46209212,98911.0,98910.0,1.17368162]
[1737965806587,0.38070767,98911.0,98910.0,1.17368162]
[1737965806788,0.38070767,98911.0,98910.0,1.19431718]
[1737965806988,0.37670767,98911.0,98910.0,1.19431718]
[1737965807187,0.02054,98911.0,98910.0,1.18731718]
[1737965807387,0.01854,98911.0,98910.0,1.12663118]
[1737965807590,0.01854,98911.0,98910.0,1.11363118]
[1737965807802,0.01954,98911.0,98910.0,1.08657118]
[1737965808012,0.01954,98911.0,98910.0,1.09657118]
[1737965808221,0.000298,98951.0,98950.0,0.151591]
[1737965808429,0.00044625,98951.0,98950.0,0.151591]
[1737965808835,0.00044625,98951.0,98946.0,0.202129]